Cogmind - Beta 11.1 @@@ ROGUE MODE // 2022.05.09 @ 05:37:34 Player: AnthonyDPS 2004 Result: Destroyed by G-47 Trooper with Particle Gun Performance ------------- Evolutions (2) 1000 Regions Visited (3) 600 Robots Destroyed (20) 100 Value Destroyed (476) 476 Prototype IDs (6) 120 Alien Tech Used (0) 0 Bonus (0) 0 TOTAL SCORE: 2296 Bonus ------- None Cogmind --------- Core Integrity 0/550 Matter 153/300 Energy 160/160 System Corruption 0% Temperature Cool (9) Movement Walking (200) Ox1 Location -8/Materials Parts ------- > --- POWER (1) -------- Light Nuclear Core > --- PROPULSION (3) --- Titanium Leg > --- UTILITY (5) ------ Medium Storage Unit Improved Power Shielding > --- WEAPON (2) ------- Improved Grenade Launcher > --- INVENTORY (10) --- Flight Unit Small Storage Unit High-capacity Matter Pod (186) Improved Datajack Peak State ------------ > --- POWER ------------ Light Deuterium Engine > --- PROPULSION ------- Carbon-fiber Leg Carbon-fiber Leg VSS Leg > --- UTILITY ---------- Medium Storage Unit Structural Scanner ECM Suite Improved Light Armor Plating > --- WEAPON ----------- EM Shotgun Ion Cannon > --- INVENTORY -------- Carbon-fiber Leg Titanium Leg Titanium Leg Titanium Leg Titanium Leg Titanium Leg Flight Unit Flight Unit Small Storage Unit High-capacity Matter Pod [Rating: 25] Favorites ----------- Power Light Ion Engine Engine Light Ion Engine Power Core Light Nuclear Core Propulsion Wheel Leg Carbon-fiber Leg Wheel Wheel Flight Unit Flight Unit Utility Medium Storage Unit Device Improved Terrain Scanner Storage Medium Storage Unit Protection Improved Light Armor Plating Weapon Small Laser Energy Gun Small Laser Energy Cannon Ion Cannon Ballistic Gun Assault Rifle Launcher Improved Grenade Launcher Build | -11 -10 -9 -8 ------- Run | Scr Mat Mat Mat Slots Evolved 4 | . . 2 2 Power . | . . . . Propulsion 1 | . . . 1 Utility 3 | . . 2 1 Weapon . | . . . . Parts Attached 40 | 10 2 7 21 Power 6 | 1 . . 5 Engine 5 | 1 . . 4 Core 1 | . . . 1 Reactor . | . . . . Propulsion 15 | 4 1 2 8 Treads . | . . . . Leg 8 | . . . 8 Wheel 5 | 4 1 . . Hover . | . . . . Flight 2 | . . 2 . Utility 12 | 2 1 4 5 Device 4 | 1 1 . 2 Storage 4 | 1 . 2 1 Processor . | . . . . Hackware . | . . . . Protection 4 | . . 2 2 Artifact . | . . . . Weapon 7 | 3 . 1 3 Energy Gun 3 | 2 . . 1 Energy Cannon 1 | . . . 1 Ballistic Gun 2 | 1 . 1 . Ballistic Cannon . | . . . . Launcher 1 | . . . 1 Special Weapon . | . . . . Impact Weapon . | . . . . Slashing Weapon . | . . . . Piercing Weapon . | . . . . Special Melee Weapon . | . . . . Unidentified Prototypes . | . . . . Parts Lost 22 | . . 9 13 Power 3 | . . 1 2 Propulsion 8 | . . 2 6 Utility 6 | . . 3 3 Weapon 5 | . . 3 2 Highest Loss Streak 9 | . . 7 9 To Critical Strikes . | . . . . Average Slot Usage (%) 78 | . 100 71 67 Engine 8 | . 14 5 6 Leg 10 | . . . 23 Wheel 11 | . 28 12 . Device 10 | . 14 6 10 Storage 11 | . 14 11 9 Protection 6 | . . 16 6 Energy Gun 14 | . 28 13 5 Energy Cannon 2 | . . . 4 Naked Turns . | . . . . Heaviest Build 30 | 11 11 20 30 Greatest Support 45 | 20 20 20 45 Greatest Overweight (x) 4 | 3 . 4 3 Average Overweight (x) . | 1 . . . Largest Inventory Capacity 10 | 8 8 10 10 Average Capacity 8 | 7 8 9 9 Most Carried 10 | 6 8 6 10 Average Carried 6 | 2 6 4 8 Final Capacity 10 | 8 8 8 10 Final Carried 7 | 5 7 4 4 Class Distribution -------------------- 82% | Mutant 17% | Infiltrator-Mutant Dominant Class ---------------- Mutant | -10/Materials Mutant | -9/Materials Mutant | -8/Materials Resources | -11 -10 -9 -8 ----------- Run | Scr Mat Mat Mat Matter Collected 720 | 300 80 238 102 Remotely . | . . . . Salvage Created 705 | 168 126 321 90 Parts 31 | 10 4 10 7 Haulers Intercepted . | . . . . Recyclers Shooed . | . . . . Parts Field Recycled . | . . . . Retrieved Matter . | . . . . Parts Self-Destructed . | . . . . Prevented . | . . . . Kills | -11 -10 -9 -8 ------- Run | Scr Mat Mat Mat Combat Hostiles Destroyed 13 | . 2 9 2 Guns 11 | . 2 9 . Cannons 1 | . . . 1 AOE 1 | . . . 1 Classes Destroyed 8 | 3 1 3 1 Worker 2 | 2 . . . Tunneler 4 | 3 1 . . Recycler 1 | 1 . . . Swarmer 3 | . . 3 . Grunt 7 | . 2 4 1 Brawler 1 | . . 1 . Sentry 1 | . . 1 . Hunter 1 | . . . 1 Best Kill Streak 6 | 3 1 6 1 Combat Bots Only 6 | . 1 6 1 Max Kills in Single Turn 1 | 1 1 1 1 Gunslinging . | . . . . Exploded 1 | . . . 1 Melee . | . . . . Uniques/NPCs Destroyed . | . . . . Combat | -11 -10 -9 -8 -------- Run | Scr Mat Mat Mat Damage Taken 3010 | . 98 847 2065 Core 876 | . 17 293 566 Absorbed by Shields . | . . . . Redirected to Shielding 39 | . . 31 8 Core Remaining (%) 73 | 100 93 26 . Volleys Fired 96 | 12 17 55 12 Largest 2 | 2 2 2 2 Hottest 105 | 80 80 80 105 Shots Fired 158 | 24 34 80 20 Gun 149 | 24 34 80 11 Cannon 8 | . . . 8 Launcher 1 | . . . 1 Special . | . . . . Kinetic 28 | . . 28 . Thermal 118 | 24 34 52 8 Explosive 1 | . . . 1 Electromagnetic 11 | . . . 11 Robot Hit Streak 10 | 10 10 10 7 Robot Miss Streak 3 | 1 3 2 1 Penetration Max . | . . . . Secondary Targets 3 | . . 3 . Max Gunslinging Chain 1 | . . 1 . Shots Hit Robots 113 | 19 20 55 19 Core Hits 40 | 7 6 17 10 Critical Kills . | . . . . Critical Parts Destroyed . | . . . . Critical Strikes . | . . . . Melee Attacks . | . . . . Impact . | . . . . Slashing . | . . . . Piercing . | . . . . Sneak Attacks . | . . . . Combat Hostiles . | . . . . Follow-up Attacks . | . . . . Damage Inflicted 1596 | 203 223 651 519 Guns 1212 | 203 223 651 135 Cannons 160 | . . . 160 Explosions 169 | . . . 169 Melee . | . . . . Ramming 55 | . . . 55 Kinetic 259 | . . 259 . Thermal 978 | 203 223 392 160 Explosive 169 | . . . 169 Electromagnetic 135 | . . . 135 Impact . | . . . . Slashing . | . . . . Piercing . | . . . . Highest Corruption 13 | . 1 13 . Average Corruption 5 | . 1 12 . Corruption Purged . | . . . . Corruption Blocked . | . . . . Effects 7 | . . 7 . Message Errors 3 | . . 3 . Heat Flow Errors 2 | . . 2 . Data Loss (minor) 1 | . . 1 . Weapon Failures 1 | . . 1 . Overload Shots . | . . . . Overflow Damage . | . . . . Projectiles . | . . . . Explosions . | . . . . Melee . | . . . . Knockbacks 1 | . . . 1 Impact 1 | . . . 1 Kinetic . | . . . . Secondary . | . . . . Self-Inflicted Damage 26 | . . . 26 Shots 1 | . . . 1 Rammed 1 | . . . 1 Targets Rammed 24 | . . . 24 Kicked 23 | . . . 23 Crushed . | . . . . Highest Temperature 458 | 31 85 458 319 Average Temperature 138 | 5 29 230 133 Received Heat Transfer 1254 | . 57 288 909 Effects 10 | . . 7 3 Energy Bleed 2 | . . 1 1 Interference 1 | . . . 1 Matter Decay 4 | . . 3 1 Damage (minor) 1 | . . 1 . Damage (major) 2 | . . 2 . Siege Activations . | . . . . Robots Corrupted . | . . . . Combat Hostiles . | . . . . Parts Fried . | . . . . Impact Corruptions . | . . . . Robots Melted . | . . . . Combat Hostiles . | . . . . Parts Melted 3 | . 1 2 . Heat Transferred 2109 | 475 500 875 259 Parts Sabotaged . | . . . . Parts Stolen . | . . . . Parts Stripped . | . . . . Power Chain Reactions . | . . . . Missiles Intercepted . | . . . . Alert | -11 -10 -9 -8 ------- Run | Scr Mat Mat Mat Peak Influence 369 | 30 261 369 284 Initial 155 | . 19 25 155 Average 137 | 9 111 183 171 Maximum Alert Level 1 | . 1 1 1 Low Security (%) 76 | 100 84 46 78 Level 1 23 | . 15 53 21 Level 2 . | . . . . Level 3 . | . . . . Level 4 . | . . . . Level 5 . | . . . . High Security . | . . . . Max Security . | . . . . Squads Dispatched 5 | . 1 2 2 Investigation 1 | . . 1 . Extermination . | . . . . Reinforcement 4 | . 1 1 2 Assault . | . . . . Garrison . | . . . . Intercept . | . . . . Searches Triggered . | . . . . Construction Impeded . | . . . . Haulers Reinforced . | . . . . Active Scanning Responses . | . . . . Cargo Convoy Interrupts . | . . . . Stealth | -11 -10 -9 -8 --------- Run | Scr Mat Mat Mat Distress Signals 3 | . 1 . 2 Communications Jammed . | . . . . Distress Signals . | . . . . Times Spotted 51 | . 8 20 23 Peak Tracking Total 10 | . 8 9 10 Tactical Retreats 12 | . 4 3 5 Traps | -11 -10 -9 -8 ------- Run | Scr Mat Mat Mat Traps Triggered 2 | . 1 1 . Indirectly . | . . . . Trap Hack Attempts . | . . . . Triggered . | . . . . Disarmed . | . . . . Reprogrammed . | . . . . Reused . | . . . . Traps Extracted . | . . . . Installed . | . . . . Triggered . | . . . . Machines | -11 -10 -9 -8 ---------- Run | Scr Mat Mat Mat Machines Disabled 1 | . . . 1 Max in Single Turn 1 | . . . 1 Machines Sabotaged . | . . . . Garrisons Compromised . | . . . . Overloaded Fab Kills . | . . . . Hacking | -11 -10 -9 -8 --------- Run | Scr Mat Mat Mat Machines Accessed 9 | . 3 4 2 Terminals 8 | . 3 4 1 Fabricators . | . . . . Repair Stations . | . . . . Recycling Units 1 | . . . 1 Scanalyzers . | . . . . Garrison Access . | . . . . Total Hacks 20 | . 8 7 5 Successful 15 | . 7 4 4 Failed 5 | . 1 3 1 Catastrophic 1 | . . . 1 Database Lockouts . | . . . . Manual . | . . . . Terminals 18 | . 8 7 3 Fabricators . | . . . . Repair Stations . | . . . . Recycling Units 2 | . . . 2 Scanalyzers . | . . . . Garrison Access . | . . . . Terminal Hacks 13 | . 7 4 2 Robot Analysis 2 | . 1 1 . Prototype ID Bank 5 | . 3 2 . Branch Access Points 1 | . 1 . . Emergency Access Points 1 | . . . 1 Dispatch Records 1 | . 1 . . Hauler Manifests 1 | . . . 1 Zone Layout 2 | . 1 1 . Fabricator Hacks . | . . . . Repair Station Hacks . | . . . . Recycling Unit Hacks 2 | . . . 2 Report Inventory 2 | . . . 2 Scanalyzer . | . . . . Garrison Access Hacks . | . . . . Unauthorized Hacks . | . . . . Terminals . | . . . . Fabricators . | . . . . Repair Stations . | . . . . Recycling Units . | . . . . Scanalyzers . | . . . . Garrison Access . | . . . . Data Cores Recovered . | . . . . Used . | . . . . Hacking Detections 7 | . 2 4 1 Full Trace Events . | . . . . Feedback Events . | . . . . Feedback Blocked . | . . . . Robot Schematics Acquired . | . . . . Robots Built . | . . . . Authchips . | . . . . Time . | . . . . Total Robot Build Rating . | . . . . Part Schematics Acquired . | . . . . Parts Built . | . . . . Authchips . | . . . . Time . | . . . . Total Part Build Rating . | . . . . Parts Repaired . | . . . . Time . | . . . . Parts Recycled . | . . . . Recycled Matter . | . . . . Retrieved Matter . | . . . . Retrieved Components . | . . . . Parts Scanalyzed . | . . . . Part Schematics Acquired . | . . . . Parts Damaged . | . . . . Bothacking | -11 -10 -9 -8 ------------ Run | Scr Mat Mat Mat Used RIF Installer . | . . . . Robots Hacked . | . . . . Non-combat . | . . . . Combat . | . . . . Robot Hacks Applied . | . . . . Relay Couplers Released . | . . . . Fabnet Peak Effective % . | . . . . Robots Rewired . | . . . . Allies Hacked . | . . . . Hacks Repelled . | . . . . Allies | -11 -10 -9 -8 -------- Run | Scr Mat Mat Mat Total Allies . | . . . . Largest Group . | . . . . Highest-Rated Group . | . . . . Highest-Rated Ally . | . . . . Total Orders . | . . . . Ally Attacks . | . . . . Total Damage . | . . . . Kills . | . . . . Allies Corrupted . | . . . . Allies Melted . | . . . . Intel | -11 -10 -9 -8 ------- Run | Scr Mat Mat Mat Robot Analysis Total 2 | . 1 1 . Derelict Logs Recovered . | . . . . Drone Launches . | . . . . Drone Recoveries . | . . . . Exploration | -11 -10 -9 -8 ------------- Run | Scr Mat Mat Mat Turns Passed 1721 | 219 471 356 675 Spaces Moved 1194 | 117 337 290 450 Core 91 | 80 . 8 3 Treads . | . . . . Legs 440 | . . . 440 Wheels 552 | 37 337 178 . Hover . | . . . . Flight 111 | . . 104 7 Fastest Speed 37 | 50 80 37 37 Average Speed 97 | 138 80 69 117 Slowest Speed 250 | 200 80 250 200 Overloaded Moves . | . . . . Propulsion Burnouts . | . . . . Robots Hopped 6 | . . 6 . Cave-ins Triggered . | . . . . Exploration Rate (%) 27 | 6 43 28 33 Regions Visited 3 Branch Regions . Pre-discovered Areas . | . . . . Known Exits Taken . | . . . . Unknown Exits Taken 3 | 1 1 1 . Scrap Searched . | . . . . Spaces Dug . | . . . . Terrain Destroyed 10 | . . . 10 Melee . | . . . . Projectile . | . . . . AOE 10 | . . . 10 Terrain Rammed . | . . . . Walls Destroyed . | . . . . Machines Disabled . | . . . . Actions | -11 -10 -9 -8 --------- Run | Scr Mat Mat Mat Total 1577 | 145 505 356 571 Wait 194 | . 142 8 44 Move 1179 | 116 336 277 450 Hop 6 | . . 6 . Pick Up 22 | 6 4 2 10 Fast Attach 20 | 7 1 . 12 Attach 14 | . . 5 9 Detach 3 | . . . 3 Swap 6 | 3 1 2 . Drop 13 | 1 4 1 7 Fire 96 | 12 17 55 12 Melee . | . . . . Ram 1 | . . . 1 Kick 23 | . . . 23 Crush . | . . . . Escape Stasis . | . . . . Rewire . | . . . . Trap . | . . . . Miscellaneous . | . . . . Route ------- -11/Scrapyard -10/Materials (discovered 2 exits: *Mat / Min) -9/Materials -8/Materials History --------- Turn | Location | Event 17 | -11/Scrapyard | Discovered new exit (range 16) 220 | -11/Scrapyard | Entered Materials 308 | -10/Materials | Build established: Mutant 525 | -10/Materials | Identified exit to Mines 683 | -10/Materials | Discovered new exit (range 10) 691 | -10/Materials | Entered another Materials area 691 | -9/Materials | Evolved 2 slots: Utility x2 927 | -9/Materials | System corruption reached 10% 948 | -9/Materials | Core integrity fell below 50% 957 | -9/Materials | Lost 7 parts (1p2n2u2w) 1045 | -9/Materials | Discovered new exit (range 4) 1047 | -9/Materials | Entered another Materials area 1047 | -8/Materials | Evolved 2 slots: Propulsion x1, Utility x1 1541 | -8/Materials | Build established: Infiltrator-Mutant 1605 | -8/Materials | Lost 9 parts (2p3n2u2w) 1635 | -8/Materials | Core integrity fell below 50% 1651 | -8/Materials | Core integrity fell below 20% 1675 | -8/Materials | Lost 3 parts (2n1u) 1722 | -8/Materials | Destroyed by G-47 Trooper with Particle Gun Last Messages --------------- 01638_ Acquired 60 matter. 01640_ K-01 Serf collects debris. 01640_ Kicked K-01 Serf. 01643_ Kicked K-01 Serf out of the way. 01644_ Carbon-fiber Leg destroyed. 01645_ Slammed into W-25 Informer. 01650_ Critical hit (Burn: +37). 01650_ K-01 Serf cleans the Nuclear Reactor. 01663_ K-01 Serf cleans the Neutrino Reactor. 01664_ ALERT: Hostiles spotted, dispatching reinforcements to Terminal M007. 01666_ K-01 Serf cleans the Neutrino Reactor. 01694_ Acquired Imp. Power Shielding. 01698_ Kicked G-47 Trooper. 01702_ Critical hit (Burn: +37). 01703_ Kicked G-47 Trooper out of the way. 01719_ Critical hit (Burn: +37). 01720_ Acquired Imp. Grenade Launcher. 01720_ Titanium Leg destroyed. 01721_ G-47 Trooper destroyed. Map ----- +----------------------------------------------------+ | ??????????????## """ ####### | | ??????????????## """ ###T### """" | | ??????????????## + + """" | | ??????????????## """ ### ### """" | | ??????????????## """ ### ### | | ??????????????## """ ### ### | | ?????????????### ### #######+# | | ?????????????#######+###### # # | | ????????????? # * ! / "" # | | ?????????????## [[ # Y" + | | ?????????????## # "" # | | ?????????????######+######### # | | ?????????????## ##### # | | ?????????????## ##?## # | | ?????????????## ##?## # | | ?????????????## = ########## | | ?????????????##################### | | ?????????????########### """ + | | ??????????????????????## /"T" # | | ?????????????????????? # "" %" " # | | ?????????????????????? # """ # | | ??????########???????? # """ # | | ??????# """ #???????? # # | | ??????# """ #???????? # # | | ??????# """ ##??????? # # | | ??????# @ #???????############ | | ?????# #???????############ | | ?????##! ##??? =#########?## | | ??????## g #?????? / # | | ???????# !% #### [#??# # | | ??????# g k #??#! + | | ??????# Yg ##### ##???# # | | ??????## #???????????# # | | ???????# #???????????# ?### # | | ???????###Y###?????? ############## # | | ?######### #??????! # | | ?# # #???????????# # | | ?# + #???????????# # | | ?# # #???????????# # | | ?######### #???????????# ####/# | | ???# ############# #?# | | ???# T ^ ^ #?# | | ???# ### | | ???# """ / | | ???# """ ### | | ???# ^""" #?# | | ???# ############ #?# | | ???# ???????????# #?# | | ???#????????????+ """ ^""" #?# | | ????????????????# """ """ #?#### | +----------------------------------------------------+ Best States ------------- Heat Dissipation 31 Energy Generation 14 Energy Capacity 250 Matter Stores 300 Matter Capacity 300 Sight Range 16 Robot Scan Range 14 Terrain Scan Range 16 Terrain Scan Density 10 ECM Strength 1 Armor Coverage 150 Power Shielding 66 Utility Shielding 33 Evasion (%) 62 Item Schematics ----------------- None Robot Schematics ------------------ None Fabricated ------------ Nothing Alien Tech Used ----------------- None Achievements -------------- None Challenges ------------ None Game ------ Seed SalvageHelicalSuperbattery Manual? 0 Play Time 00:21:21 Cumulative 27.9 hours Start 2022.05.09 @ 05:16:32 End 2022.05.09 @ 05:37:34 Sessions 1 Manual Loads 0 Difficulty Rogue Special Mode None Game No. 54 Rogue 54 Adventurer 0 Explorer 0 Win Type - Total 0 Types 0/0/0/0/0/0/0/0/0 Lore% 23 Gallery% 30 Achievement% 24 Wizard Run 0 Options --------- ASCII 0 Keyboard 0 Movement Numpad Keybinds 0 Fullscreen 2 Font 18/SmallcapsGlow Map View 76x50 Tactical HUD 1 Map Filters NONE Filters NONE Steam 1 RUN: 306247ca-4e18-4078-a54d-8eb062372bca